[Event "Late-Titled-Tuesday-Blitz-February-06-2024"]
[Site "Chess.com"]
[Date "2024.02.06"]
[Round "11"]
[White "StellarChess"]
[Black "CaspiIsrael"]
[Result "0-1"]
[WhiteElo "2567"]
[BlackElo "2702"]
[TimeControl "180+1"]
[EndTime "16:03:57 PST"]
[Termination "CaspiIsrael won by resignation"]

1. d4 {[%clk 0:03:00.9]} 1... f5 {[%clk 0:02:59.5]} 2. Bg5 {[%clk 0:02:58.4]}
2... g6 {[%clk 0:02:58.6]} 3. Nc3 {[%clk 0:02:58.2]} 3... Bg7 {[%clk 0:02:58.4]}
4. Qd2 {[%clk 0:02:58.1]} 4... h6 {[%clk 0:02:58]} 5. Be3 {[%clk 0:02:55.6]}
5... Nc6 {[%clk 0:02:55.1]} 6. h4 {[%clk 0:02:38.5]} 6... Nf6 {[%clk 0:02:53.7]}
7. f3 {[%clk 0:02:28]} 7... e5 {[%clk 0:02:40.3]} 8. d5 {[%clk 0:02:12.7]} 8...
Ne7 {[%clk 0:02:37.6]} 9. g3 {[%clk 0:01:50.7]} 9... d6 {[%clk 0:02:35.2]} 10.
O-O-O {[%clk 0:01:50.2]} 10... b5 {[%clk 0:02:28.6]} 11. Bf2 {[%clk 0:01:34.8]}
11... b4 {[%clk 0:02:26.4]} 12. Nb1 {[%clk 0:01:35.1]} 12... a5 {[%clk
0:02:14.6]} 13. c4 {[%clk 0:01:30.6]} 13... O-O {[%clk 0:02:03.8]} 14. Nh3
{[%clk 0:01:27.9]} 14... Ra6 {[%clk 0:01:42.6]} 15. Be3 {[%clk 0:01:18.9]} 15...
Kh7 {[%clk 0:01:33.5]} 16. Bg2 {[%clk 0:01:14.8]} 16... c6 {[%clk 0:01:30.4]}
17. Ng5+ {[%clk 0:01:08.6]} 17... hxg5 {[%clk 0:01:23.1]} 18. hxg5+ {[%clk
0:01:09.5]} 18... Nh5 {[%clk 0:01:23.4]} 19. c5 {[%clk 0:00:47.2]} 19... cxd5
{[%clk 0:01:15.1]} 20. Rh4 {[%clk 0:00:39.9]} 20... d4 {[%clk 0:01:09.8]} 21.
Bf2 {[%clk 0:00:39.9]} 21... Rc6 {[%clk 0:01:08.8]} 22. Rdh1 {[%clk 0:00:39.5]}
22... Rxc5+ {[%clk 0:01:06.3]} 23. Kd1 {[%clk 0:00:40.2]} 23... Kg8 {[%clk
0:01:04.2]} 24. g4 {[%clk 0:00:31.5]} 24... Nf4 {[%clk 0:01:00.9]} 25. Bf1
{[%clk 0:00:31.9]} 25... fxg4 {[%clk 0:00:56.1]} 26. fxg4 {[%clk 0:00:29.2]}
26... Ned5 {[%clk 0:00:55.2]} 27. Rh7 {[%clk 0:00:25.8]} 27... Qxg5 {[%clk
0:00:53.4]} 28. Bg2 {[%clk 0:00:23.1]} 28... Bxg4 {[%clk 0:00:49.1]} 29. Bf3
{[%clk 0:00:17.6]} 29... Bxf3 {[%clk 0:00:47.4]} 30. exf3 {[%clk 0:00:18.5]}
30... Qf5 {[%clk 0:00:45.9]} 31. Na3 {[%clk 0:00:13]} 31... bxa3 {[%clk
0:00:45.2]} 32. Bh4 {[%clk 0:00:11.6]} 32... Qb1+ {[%clk 0:00:43.7]} 0-1

[Event "Late-Titled-Tuesday-Blitz-February-06-2024"]
[Site "Chess.com"]
[Date "2024.02.06"]
[Round "11"]
[White "boguszp"]
[Black "pfalcon1949"]
[Result "0-1"]
[WhiteElo "2015"]
[BlackElo "1978"]
[TimeControl "180+1"]
[EndTime "16:03:58 PST"]
[Termination "pfalcon1949 won on time"]

1. d4 {[%clk 0:02:55.6]} 1... Nf6 {[%clk 0:02:59.2]} 2. Bf4 {[%clk 0:02:55.5]}
2... d5 {[%clk 0:02:57.9]} 3. e3 {[%clk 0:02:54.2]} 3... c5 {[%clk 0:02:58.5]}
4. c3 {[%clk 0:02:53.8]} 4... Nc6 {[%clk 0:02:58.7]} 5. Nd2 {[%clk 0:02:54.1]}
5... Bf5 {[%clk 0:02:55.7]} 6. Ngf3 {[%clk 0:02:52.6]} 6... c4 {[%clk
0:02:53.9]} 7. h3 {[%clk 0:02:50.1]} 7... e6 {[%clk 0:02:52]} 8. b3 {[%clk
0:02:48.6]} 8... b5 {[%clk 0:02:49.1]} 9. a4 {[%clk 0:02:48.4]} 9... a6 {[%clk
0:02:47.9]} 10. b4 {[%clk 0:02:31.2]} 10... Ne4 {[%clk 0:02:42.8]} 11. Qc1
{[%clk 0:02:21.2]} 11... Be7 {[%clk 0:02:38.8]} 12. Be2 {[%clk 0:02:18.2]} 12...
h6 {[%clk 0:02:37.3]} 13. O-O {[%clk 0:02:17.5]} 13... O-O {[%clk 0:02:37.7]}
14. Ne5 {[%clk 0:02:06.9]} 14... Nxe5 {[%clk 0:02:33.4]} 15. Bxe5 {[%clk
0:02:04.4]} 15... Bd6 {[%clk 0:02:28.4]} 16. Nxe4 {[%clk 0:02:01]} 16... dxe4
{[%clk 0:02:18.1]} 17. Bxd6 {[%clk 0:02:00.3]} 17... Qxd6 {[%clk 0:02:17.6]} 18.
Qa3 {[%clk 0:01:51.6]} 18... Kh7 {[%clk 0:02:07.7]} 19. axb5 {[%clk 0:01:38.6]}
19... axb5 {[%clk 0:02:08.6]} 20. Qxa8 {[%clk 0:01:38]} 20... Rxa8 {[%clk
0:02:07.1]} 21. Rxa8 {[%clk 0:01:38.3]} 21... e5 {[%clk 0:02:04.5]} 22. Rfa1
{[%clk 0:01:32.2]} 22... exd4 {[%clk 0:02:04.3]} 23. exd4 {[%clk 0:01:32.1]}
23... e3 {[%clk 0:02:02.4]} 24. Re8 {[%clk 0:01:14.8]} 24... exf2+ {[%clk
0:01:56.7]} 25. Kxf2 {[%clk 0:01:14.4]} 25... Qf4+ {[%clk 0:01:52.7]} 26. Kg1
{[%clk 0:01:06.4]} 26... Qd2 {[%clk 0:01:51.1]} 27. Rf1 {[%clk 0:00:55.4]} 27...
Bg6 {[%clk 0:01:33.4]} 28. Rf3 {[%clk 0:00:46.3]} 28... f6 {[%clk 0:01:28.6]}
29. Re7 {[%clk 0:00:40.5]} 29... Bh5 {[%clk 0:01:13.9]} 30. Rfe3 {[%clk
0:00:36.8]} 30... Bxe2 {[%clk 0:01:06.2]} 31. Rxe2 {[%clk 0:00:36.2]} 31... Qxc3
{[%clk 0:01:06.2]} 32. R7e4 {[%clk 0:00:24.2]} 32... Qxb4 {[%clk 0:01:03.9]} 33.
Kh2 {[%clk 0:00:17.9]} 33... c3 {[%clk 0:01:02.9]} 34. g3 {[%clk 0:00:09.6]}
34... Qc4 {[%clk 0:00:58.2]} 0-1

[Event "Late-Titled-Tuesday-Blitz-February-06-2024"]
[Site "Chess.com"]
[Date "2024.02.06"]
[Round "11"]
[White "GoValya"]
[Black "pr1105"]
[Result "0-1"]
[WhiteElo "2282"]
[BlackElo "2416"]
[TimeControl "180+1"]
[EndTime "16:03:59 PST"]
[Termination "pr1105 won by resignation"]

1. d4 {[%clk 0:03:00.9]} 1... Nf6 {[%clk 0:02:53.7]} 2. g3 {[%clk 0:03:00.7]}
2... d5 {[%clk 0:02:46.9]} 3. Bg2 {[%clk 0:03:00.6]} 3... Bf5 {[%clk 0:02:35]}
4. c4 {[%clk 0:02:59.1]} 4... e6 {[%clk 0:02:35.2]} 5. Nc3 {[%clk 0:02:58.9]}
5... c6 {[%clk 0:02:29.9]} 6. Nf3 {[%clk 0:02:57.8]} 6... h6 {[%clk 0:02:29.1]}
7. O-O {[%clk 0:02:58.2]} 7... Nbd7 {[%clk 0:02:25.2]} 8. Nd2 {[%clk 0:02:58.7]}
8... Be7 {[%clk 0:02:00.3]} 9. e4 {[%clk 0:02:55]} 9... dxe4 {[%clk 0:01:59.1]}
10. Ndxe4 {[%clk 0:02:55.3]} 10... Nxe4 {[%clk 0:01:55.9]} 11. Nxe4 {[%clk
0:02:55.6]} 11... Nf6 {[%clk 0:01:51.1]} 12. Nc3 {[%clk 0:02:55.8]} 12... O-O
{[%clk 0:01:48.6]} 13. h3 {[%clk 0:02:55.7]} 13... Qb6 {[%clk 0:01:44.3]} 14. b3
{[%clk 0:02:49.1]} 14... Rfd8 {[%clk 0:01:37.5]} 15. Be3 {[%clk 0:02:47.3]}
15... Qa5 {[%clk 0:01:31.8]} 16. Qc1 {[%clk 0:02:18.8]} 16... Ba3 {[%clk
0:01:29.2]} 17. Qe1 {[%clk 0:01:45]} 17... Bb2 {[%clk 0:01:23.4]} 18. Na4 {[%clk
0:01:45]} 18... Qxe1 {[%clk 0:01:18.9]} 19. Raxe1 {[%clk 0:01:45.9]} 19... Bxd4
{[%clk 0:01:18.4]} 20. Bf4 {[%clk 0:01:20.7]} 20... Bd3 {[%clk 0:01:14.6]} 21.
Rd1 {[%clk 0:01:14.6]} 21... Bxf1 {[%clk 0:01:12.9]} 22. Kxf1 {[%clk 0:01:15.5]}
22... e5 {[%clk 0:01:06.7]} 23. Bc1 {[%clk 0:01:04.5]} 23... e4 {[%clk
0:00:57.8]} 24. Re1 {[%clk 0:00:40.4]} 24... b5 {[%clk 0:00:43.3]} 25. cxb5
{[%clk 0:00:40.1]} 25... cxb5 {[%clk 0:00:44.2]} 26. Nb2 {[%clk 0:00:36.1]}
26... Rac8 {[%clk 0:00:37.2]} 0-1

[Event "Late-Titled-Tuesday-Blitz-February-06-2024"]
[Site "Chess.com"]
[Date "2024.02.06"]
[Round "11"]
[White "brm72"]
[Black "cukricek"]
[Result "0-1"]
[WhiteElo "2634"]
[BlackElo "2448"]
[TimeControl "180+1"]
[EndTime "16:04:07 PST"]
[Termination "cukricek won by resignation"]

1. d4 {[%clk 0:03:00.9]} 1... Nf6 {[%clk 0:02:59.9]} 2. Bg5 {[%clk 0:03:00.8]}
2... Ne4 {[%clk 0:02:59.5]} 3. Bf4 {[%clk 0:03:01]} 3... c5 {[%clk 0:03:00.1]}
4. Bxb8 {[%clk 0:03:00.1]} 4... Rxb8 {[%clk 0:02:58.9]} 5. f3 {[%clk 0:02:44.2]}
5... Qa5+ {[%clk 0:02:58.8]} 6. c3 {[%clk 0:02:43.4]} 6... Nf6 {[%clk
0:02:56.1]} 7. e4 {[%clk 0:02:30]} 7... cxd4 {[%clk 0:02:50]} 8. Qxd4 {[%clk
0:02:30.9]} 8... e6 {[%clk 0:02:40.6]} 9. Bc4 {[%clk 0:02:18.2]} 9... Bc5 {[%clk
0:02:35.7]} 10. Qd3 {[%clk 0:02:16.4]} 10... Bxg1 {[%clk 0:02:29.4]} 11. Rxg1
{[%clk 0:02:15.4]} 11... Qb6 {[%clk 0:02:29.9]} 12. Rf1 {[%clk 0:01:26]} 12...
Qxb2 {[%clk 0:02:29.3]} 13. Qd2 {[%clk 0:01:26.7]} 13... Qxa1 {[%clk 0:02:28.3]}
14. Ke2 {[%clk 0:01:23.6]} 14... b5 {[%clk 0:02:17.3]} 15. Na3 {[%clk
0:01:03.5]} 15... Qxf1+ {[%clk 0:02:09.3]} 16. Kxf1 {[%clk 0:01:04.4]} 16...
bxc4 {[%clk 0:02:09.1]} 17. Qd6 {[%clk 0:01:04.1]} 17... Rb6 {[%clk 0:02:08.1]}
18. Qc7 {[%clk 0:01:00.1]} 18... Rc6 {[%clk 0:02:07.4]} 19. Qxa7 {[%clk
0:00:57.2]} 19... O-O {[%clk 0:02:03.9]} 20. Nb5 {[%clk 0:00:54.9]} 20... d5
{[%clk 0:01:57.1]} 21. Nd4 {[%clk 0:00:50.9]} 21... Ra6 {[%clk 0:01:55]} 22. Qc7
{[%clk 0:00:37.8]} 22... dxe4 {[%clk 0:01:49.1]} 23. fxe4 {[%clk 0:00:33.8]}
23... Rxa2 {[%clk 0:01:44.1]} 24. Nc6 {[%clk 0:00:30.8]} 24... Ba6 {[%clk
0:01:23.3]} 25. Ne7+ {[%clk 0:00:28.6]} 25... Kh8 {[%clk 0:01:23.8]} 26. h4
{[%clk 0:00:26.7]} 26... Nxe4 {[%clk 0:01:15.4]} 27. h5 {[%clk 0:00:27.2]} 27...
h6 {[%clk 0:01:13.8]} 28. g4 {[%clk 0:00:23.7]} 28... Nxc3 {[%clk 0:01:10.8]}
29. g5 {[%clk 0:00:20.9]} 29... Nd5 {[%clk 0:00:41.8]} 30. Qd6 {[%clk
0:00:16.7]} 30... Nxe7 {[%clk 0:00:39.1]} 31. Qxe7 {[%clk 0:00:17.6]} 31... Rb8
{[%clk 0:00:38.7]} 0-1

[Event "Late-Titled-Tuesday-Blitz-February-06-2024"]
[Site "Chess.com"]
[Date "2024.02.06"]
[Round "11"]
[White "TheAlienParty"]
[Black "protectiago"]
[Result "1-0"]
[WhiteElo "2405"]
[BlackElo "2122"]
[TimeControl "180+1"]
[EndTime "16:04:09 PST"]
[Termination "TheAlienParty won on time"]

1. c4 {[%clk 0:02:35]} 1... c5 {[%clk 0:02:57.8]} 2. Nc3 {[%clk 0:02:34.4]} 2...
Nc6 {[%clk 0:02:57.2]} 3. Nf3 {[%clk 0:02:34.2]} 3... Nf6 {[%clk 0:02:56.6]} 4.
d4 {[%clk 0:02:34.2]} 4... cxd4 {[%clk 0:02:51.8]} 5. Nxd4 {[%clk 0:02:33.9]}
5... g6 {[%clk 0:02:45.4]} 6. g3 {[%clk 0:02:33]} 6... Bg7 {[%clk 0:02:44.8]} 7.
Nc2 {[%clk 0:02:32.8]} 7... O-O {[%clk 0:02:43.7]} 8. Bg2 {[%clk 0:02:32.7]}
8... d6 {[%clk 0:02:42.3]} 9. O-O {[%clk 0:02:32.5]} 9... Be6 {[%clk 0:02:35.9]}
10. b3 {[%clk 0:02:32.3]} 10... Qd7 {[%clk 0:02:36.2]} 11. Bb2 {[%clk
0:02:27.6]} 11... Bh3 {[%clk 0:02:36.2]} 12. Ne3 {[%clk 0:02:20.4]} 12... Bxg2
{[%clk 0:02:34.6]} 13. Kxg2 {[%clk 0:02:20.3]} 13... Rfd8 {[%clk 0:02:17.9]} 14.
Qd2 {[%clk 0:02:19.7]} 14... Ng4 {[%clk 0:01:55.5]} 15. Ned5 {[%clk 0:02:16.3]}
15... e6 {[%clk 0:01:52.2]} 16. Nf4 {[%clk 0:02:10.9]} 16... Nce5 {[%clk
0:01:43]} 17. f3 {[%clk 0:02:02]} 17... Qc6 {[%clk 0:01:31.2]} 18. h3 {[%clk
0:01:47.8]} 18... Nf6 {[%clk 0:01:30.5]} 19. Rad1 {[%clk 0:01:45.2]} 19... g5
{[%clk 0:01:06.5]} 20. Nd3 {[%clk 0:01:39.8]} 20... g4 {[%clk 0:00:56.7]} 21.
hxg4 {[%clk 0:01:35.5]} 21... Nexg4 {[%clk 0:00:47.2]} 22. Nf4 {[%clk
0:01:27.7]} 22... Bh6 {[%clk 0:00:23.6]} 23. Kh3 {[%clk 0:01:23]} 23... Ne5
{[%clk 0:00:22.3]} 24. Rh1 {[%clk 0:01:20.2]} 24... Ng6 {[%clk 0:00:21.5]} 25.
Kg2 {[%clk 0:01:18.2]} 25... Nxf4+ {[%clk 0:00:14.9]} 26. gxf4 {[%clk
0:01:17.8]} 26... Bg7 {[%clk 0:00:11.1]} 27. Kf2 {[%clk 0:01:15.9]} 27... Qb6+
{[%clk 0:00:10.7]} 28. e3 {[%clk 0:01:15.4]} 28... d5 {[%clk 0:00:10.3]} 29.
cxd5 {[%clk 0:01:09.9]} 29... exd5 {[%clk 0:00:10.2]} 30. Ne2 {[%clk 0:01:06.6]}
30... Kf8 {[%clk 0:00:07.7]} 31. Bd4 {[%clk 0:01:04.5]} 31... Qe6 {[%clk
0:00:07.4]} 32. Rdg1 {[%clk 0:01:02.6]} 32... Ne8 {[%clk 0:00:04.7]} 33. Qb2
{[%clk 0:01:01.1]} 33... Bxd4 {[%clk 0:00:03.9]} 34. Nxd4 {[%clk 0:00:59.7]}
34... Qe7 {[%clk 0:00:02.7]} 35. Rxh7 {[%clk 0:00:58.3]} 35... Nf6 {[%clk
0:00:02.5]} 36. Rh8+ {[%clk 0:00:56.8]} 1-0

[Event "Late-Titled-Tuesday-Blitz-February-06-2024"]
[Site "Chess.com"]
[Date "2024.02.06"]
[Round "11"]
[White "temus_galaktionov"]
[Black "GMWSO"]
[Result "0-1"]
[WhiteElo "2870"]
[BlackElo "3082"]
[TimeControl "180+1"]
[EndTime "16:04:13 PST"]
[Termination "GMWSO won by resignation"]

1. d4 {[%clk 0:03:00.9]} 1... d5 {[%clk 0:02:59.6]} 2. c4 {[%clk 0:02:59.8]}
2... e6 {[%clk 0:02:59.6]} 3. Nf3 {[%clk 0:02:59.8]} 3... Nf6 {[%clk 0:02:59]}
4. Nc3 {[%clk 0:02:59.7]} 4... a6 {[%clk 0:02:59.2]} 5. cxd5 {[%clk 0:02:59.7]}
5... exd5 {[%clk 0:03:00.1]} 6. Bg5 {[%clk 0:02:59.8]} 6... Be6 {[%clk
0:03:00.1]} 7. e3 {[%clk 0:03:00]} 7... Nbd7 {[%clk 0:03:00.6]} 8. Bd3 {[%clk
0:02:59.8]} 8... Bd6 {[%clk 0:03:01]} 9. h3 {[%clk 0:03:00.1]} 9... c6 {[%clk
0:03:01]} 10. O-O {[%clk 0:02:59.9]} 10... Qc7 {[%clk 0:03:01.1]} 11. Qd2 {[%clk
0:02:59.9]} 11... O-O {[%clk 0:03:01.4]} 12. Bf4 {[%clk 0:02:58.7]} 12... Rfe8
{[%clk 0:03:01.6]} 13. Rfc1 {[%clk 0:02:58.2]} 13... Nb6 {[%clk 0:03:00.7]} 14.
Bxd6 {[%clk 0:02:49.2]} 14... Qxd6 {[%clk 0:03:01.6]} 15. Ne5 {[%clk 0:02:49.3]}
15... Nfd7 {[%clk 0:02:55.2]} 16. Nxd7 {[%clk 0:02:46.9]} 16... Qxd7 {[%clk
0:02:49.1]} 17. Qc2 {[%clk 0:02:46.1]} 17... g6 {[%clk 0:02:47.3]} 18. Na4
{[%clk 0:02:45.7]} 18... Nxa4 {[%clk 0:02:45.5]} 19. Qxa4 {[%clk 0:02:46.6]}
19... h5 {[%clk 0:02:41.9]} 20. Re1 {[%clk 0:02:05.5]} 20... h4 {[%clk
0:02:33.8]} 21. Rad1 {[%clk 0:02:03.9]} 21... Bf5 {[%clk 0:02:32.2]} 22. Qc2
{[%clk 0:01:57.5]} 22... Bxd3 {[%clk 0:02:31.3]} 23. Qxd3 {[%clk 0:01:57.4]}
23... Re6 {[%clk 0:02:28]} 24. f3 {[%clk 0:01:51.9]} 24... Rae8 {[%clk
0:02:21.2]} 25. e4 {[%clk 0:01:52.4]} 25... Qe7 {[%clk 0:01:59.8]} 26. e5 {[%clk
0:01:49.2]} 26... Qg5 {[%clk 0:01:59.3]} 27. Rf1 {[%clk 0:01:24.6]} 27... Qf4
{[%clk 0:01:57.7]} 28. Qd2 {[%clk 0:01:24.7]} 28... g5 {[%clk 0:01:57.6]} 29.
Qxf4 {[%clk 0:01:14.9]} 29... gxf4 {[%clk 0:01:58.5]} 30. Rf2 {[%clk 0:01:05.5]}
30... f6 {[%clk 0:01:58.2]} 31. exf6 {[%clk 0:01:05.6]} 31... Kf7 {[%clk
0:01:58.4]} 32. Kf1 {[%clk 0:01:05.1]} 32... Kxf6 {[%clk 0:01:58]} 33. Rc2
{[%clk 0:01:04]} 33... Ke7 {[%clk 0:01:56.2]} 34. Kf2 {[%clk 0:00:53.1]} 34...
Kd6 {[%clk 0:01:56.6]} 35. Rcd2 {[%clk 0:00:50.5]} 35... Re3 {[%clk 0:01:55.7]}
36. Rc2 {[%clk 0:00:49.6]} 36... a5 {[%clk 0:01:55.7]} 37. Rcd2 {[%clk
0:00:47.7]} 37... a4 {[%clk 0:01:55.8]} 38. Rc2 {[%clk 0:00:47.8]} 38... R8e6
{[%clk 0:01:54.8]} 39. Rcd2 {[%clk 0:00:47.8]} 39... Re8 {[%clk 0:01:53.2]} 40.
Rc2 {[%clk 0:00:47.8]} 40... R3e6 {[%clk 0:01:53]} 41. Rcd2 {[%clk 0:00:47.4]}
41... Ra8 {[%clk 0:01:53.2]} 42. Rc2 {[%clk 0:00:43.3]} 42... Ra5 {[%clk
0:01:53.6]} 43. Re1 {[%clk 0:00:43.5]} 43... Rxe1 {[%clk 0:01:45.6]} 44. Kxe1
{[%clk 0:00:44.4]} 44... b6 {[%clk 0:01:44.7]} 45. Kd2 {[%clk 0:00:39.8]} 45...
Ra7 {[%clk 0:01:44.6]} 46. Rc3 {[%clk 0:00:31.9]} 46... Rg7 {[%clk 0:01:43.1]}
47. Ra3 {[%clk 0:00:24]} 47... Rxg2+ {[%clk 0:01:44]} 48. Kc1 {[%clk 0:00:23]}
48... b5 {[%clk 0:01:43.9]} 49. b3 {[%clk 0:00:23.2]} 49... axb3 {[%clk
0:01:39.7]} 50. axb3 {[%clk 0:00:24.1]} 50... Rh2 {[%clk 0:01:39.7]} 51. Ra8
{[%clk 0:00:22]} 51... Rxh3 {[%clk 0:01:40.6]} 52. Rh8 {[%clk 0:00:22.2]} 52...
Rxf3 {[%clk 0:01:35.3]} 53. Rxh4 {[%clk 0:00:21.8]} 53... Rxb3 {[%clk
0:01:35.8]} 54. Rxf4 {[%clk 0:00:22.1]} 54... Rc3+ {[%clk 0:01:36.3]} 55. Kd2
{[%clk 0:00:21.2]} 55... Rc4 {[%clk 0:01:37.2]} 56. Kd3 {[%clk 0:00:21.4]} 56...
Kc7 {[%clk 0:01:35]} 57. Rf8 {[%clk 0:00:17]} 57... b4 {[%clk 0:01:33.3]} 58.
Ra8 {[%clk 0:00:17]} 58... Kb7 {[%clk 0:01:33.2]} 59. Ra4 {[%clk 0:00:16]} 59...
Kb6 {[%clk 0:01:33.1]} 60. Ra8 {[%clk 0:00:15.9]} 60... Kb5 {[%clk 0:01:33.2]}
61. Ra1 {[%clk 0:00:13.4]} 61... Rc3+ {[%clk 0:01:33.1]} 62. Kd2 {[%clk
0:00:12.5]} 62... Kc4 {[%clk 0:01:34]} 0-1

[Event "Late-Titled-Tuesday-Blitz-February-06-2024"]
[Site "Chess.com"]
[Date "2024.02.06"]
[Round "11"]
[White "Zallio"]
[Black "Boninknights"]
[Result "0-1"]
[WhiteElo "2154"]
[BlackElo "2349"]
[TimeControl "180+1"]
[EndTime "16:04:14 PST"]
[Termination "Boninknights won by checkmate"]

1. e4 {[%clk 0:02:47.4]} 1... e5 {[%clk 0:02:57.9]} 2. Nf3 {[%clk 0:02:46.7]}
2... Qe7 {[%clk 0:02:57.5]} 3. Bc4 {[%clk 0:02:42.4]} 3... g6 {[%clk 0:02:55.3]}
4. O-O {[%clk 0:02:40.4]} 4... Bg7 {[%clk 0:02:53.8]} 5. c3 {[%clk 0:02:40.8]}
5... Nf6 {[%clk 0:02:52.2]} 6. d3 {[%clk 0:02:39.1]} 6... O-O {[%clk 0:02:50.2]}
7. Bg5 {[%clk 0:02:35.4]} 7... h6 {[%clk 0:02:48.9]} 8. Bh4 {[%clk 0:02:33.8]}
8... d6 {[%clk 0:02:47.9]} 9. Re1 {[%clk 0:02:32]} 9... a5 {[%clk 0:02:43.6]}
10. a4 {[%clk 0:02:31.2]} 10... Nbd7 {[%clk 0:02:40.2]} 11. Nbd2 {[%clk
0:02:30.4]} 11... c6 {[%clk 0:02:28]} 12. Nf1 {[%clk 0:02:19.2]} 12... g5 {[%clk
0:02:22]} 13. Bg3 {[%clk 0:02:19.1]} 13... Nc5 {[%clk 0:02:12]} 14. Ne3 {[%clk
0:02:14.8]} 14... Nh5 {[%clk 0:01:56.2]} 15. b4 {[%clk 0:02:00.8]} 15... axb4
{[%clk 0:01:49.6]} 16. cxb4 {[%clk 0:01:52.3]} 16... Nxa4 {[%clk 0:01:41.1]} 17.
Rxa4 {[%clk 0:01:30.2]} 17... Rxa4 {[%clk 0:01:38.1]} 18. Qxa4 {[%clk
0:01:30.9]} 18... b5 {[%clk 0:01:37.9]} 19. Bxb5 {[%clk 0:01:27.6]} 19... cxb5
{[%clk 0:01:37.8]} 20. Qxb5 {[%clk 0:01:27.9]} 20... f5 {[%clk 0:01:27.2]} 21.
Nd5 {[%clk 0:01:06.8]} 21... Qf7 {[%clk 0:01:20.5]} 22. h4 {[%clk 0:00:55.6]}
22... g4 {[%clk 0:01:15]} 23. Nd2 {[%clk 0:00:49.1]} 23... f4 {[%clk 0:01:13.1]}
24. Bh2 {[%clk 0:00:36]} 24... g3 {[%clk 0:01:12.7]} 25. Nc4 {[%clk 0:00:33.3]}
25... gxh2+ {[%clk 0:01:09.8]} 26. Kxh2 {[%clk 0:00:33.7]} 26... f3 {[%clk
0:01:05.7]} 27. Nxd6 {[%clk 0:00:23]} 27... Qe6 {[%clk 0:01:02.1]} 28. Nxc8
{[%clk 0:00:15.9]} 28... Rxc8 {[%clk 0:01:00.8]} 29. g3 {[%clk 0:00:15.3]} 29...
Rc2 {[%clk 0:00:54.9]} 30. Kg1 {[%clk 0:00:12.5]} 30... Qh3 {[%clk 0:00:52.4]}
31. Ne3 {[%clk 0:00:12.9]} 31... Nxg3 {[%clk 0:00:46.3]} 32. Qe8+ {[%clk
0:00:08.7]} 32... Kh7 {[%clk 0:00:45]} 33. Qa4 {[%clk 0:00:05.9]} 33... Qh1#
{[%clk 0:00:40]} 0-1

[Event "Late-Titled-Tuesday-Blitz-February-06-2024"]
[Site "Chess.com"]
[Date "2024.02.06"]
[Round "11"]
[White "Binary010"]
[Black "dmitrijiIM"]
[Result "0-1"]
[WhiteElo "2838"]
[BlackElo "2935"]
[TimeControl "180+1"]
[EndTime "16:04:22 PST"]
[Termination "dmitrijiIM won by resignation"]

1. e4 {[%clk 0:03:00.9]} 1... e5 {[%clk 0:02:59.3]} 2. Nf3 {[%clk 0:03:01]} 2...
Nc6 {[%clk 0:02:59.5]} 3. Bc4 {[%clk 0:03:00.7]} 3... Bc5 {[%clk 0:02:58.9]} 4.
c3 {[%clk 0:03:00.8]} 4... Nf6 {[%clk 0:02:58.9]} 5. d4 {[%clk 0:03:00.9]} 5...
exd4 {[%clk 0:02:56.4]} 6. b4 {[%clk 0:03:01.1]} 6... Be7 {[%clk 0:02:39.6]} 7.
e5 {[%clk 0:02:57.2]} 7... Ne4 {[%clk 0:02:39.1]} 8. b5 {[%clk 0:02:33.2]} 8...
d5 {[%clk 0:02:13.2]} 9. exd6 {[%clk 0:02:12]} 9... Nxd6 {[%clk 0:01:37.9]} 10.
bxc6 {[%clk 0:02:11.7]} 10... Nxc4 {[%clk 0:01:38.5]} 11. cxb7 {[%clk
0:02:08.7]} 11... Bxb7 {[%clk 0:01:39.4]} 12. Qa4+ {[%clk 0:02:08.8]} 12... Qd7
{[%clk 0:01:40]} 13. Qxc4 {[%clk 0:02:08.1]} 13... O-O {[%clk 0:01:35.8]} 14.
Qxd4 {[%clk 0:01:57.2]} 14... Qb5 {[%clk 0:01:31.1]} 15. a4 {[%clk 0:01:32.6]}
15... Qa6 {[%clk 0:01:25.8]} 16. Be3 {[%clk 0:01:30.7]} 16... Rad8 {[%clk
0:01:18.4]} 17. Qg4 {[%clk 0:00:52.8]} 17... Qd3 {[%clk 0:01:17.4]} 18. Nbd2
{[%clk 0:00:43.5]} 18... Ba6 {[%clk 0:01:11.9]} 19. c4 {[%clk 0:00:43.8]} 19...
Bb4 {[%clk 0:01:05.5]} 20. Rd1 {[%clk 0:00:10.1]} 20... Bxc4 {[%clk 0:01:03.8]}
21. Ne5 {[%clk 0:00:10.4]} 21... Bxd2+ {[%clk 0:00:40.8]} 22. Bxd2 {[%clk
0:00:10.7]} 22... Rfe8 {[%clk 0:00:34.6]} 23. f4 {[%clk 0:00:10.3]} 23... Qe4+
{[%clk 0:00:29.7]} 24. Kf2 {[%clk 0:00:10]} 24... Rxe5 {[%clk 0:00:30.1]} 25.
Rhe1 {[%clk 0:00:09.3]} 25... Rxd2+ {[%clk 0:00:24.3]} 26. Kg3 {[%clk 0:00:07]}
26... Qxg2+ {[%clk 0:00:17.2]} 27. Kh4 {[%clk 0:00:06.9]} 27... Qxh2+ {[%clk
0:00:17.4]} 0-1

[Event "Late-Titled-Tuesday-Blitz-February-06-2024"]
[Site "Chess.com"]
[Date "2024.02.06"]
[Round "11"]
[White "karinachess1"]
[Black "Redzishchess"]
[Result "1-0"]
[WhiteElo "2682"]
[BlackElo "2535"]
[TimeControl "180+1"]
[EndTime "16:04:33 PST"]
[Termination "karinachess1 won on time"]

1. d4 {[%clk 0:03:00.9]} 1... Nf6 {[%clk 0:02:58.6]} 2. c4 {[%clk 0:03:00.9]}
2... g6 {[%clk 0:02:59]} 3. Nc3 {[%clk 0:02:58.2]} 3... d5 {[%clk 0:02:59.2]} 4.
h4 {[%clk 0:02:53]} 4... Bg7 {[%clk 0:02:20.8]} 5. h5 {[%clk 0:02:50.2]} 5...
O-O {[%clk 0:02:16.1]} 6. hxg6 {[%clk 0:02:30.6]} 6... hxg6 {[%clk 0:02:13.6]}
7. Nf3 {[%clk 0:02:22.2]} 7... c5 {[%clk 0:01:46.7]} 8. cxd5 {[%clk 0:02:07.6]}
8... Nxd5 {[%clk 0:01:41.8]} 9. Bh6 {[%clk 0:02:06.3]} 9... Nxc3 {[%clk
0:01:36.6]} 10. bxc3 {[%clk 0:02:05.4]} 10... cxd4 {[%clk 0:01:25]} 11. Bxg7
{[%clk 0:01:49.3]} 11... Kxg7 {[%clk 0:01:25.9]} 12. cxd4 {[%clk 0:01:44]} 12...
Qa5+ {[%clk 0:01:12.5]} 13. Qd2 {[%clk 0:01:43.7]} 13... Nc6 {[%clk 0:00:59.8]}
14. e3 {[%clk 0:01:24.6]} 14... Qxd2+ {[%clk 0:00:52.4]} 15. Kxd2 {[%clk
0:01:23.8]} 15... Bg4 {[%clk 0:00:52.8]} 16. Rb1 {[%clk 0:01:17.1]} 16... b6
{[%clk 0:00:48]} 17. Ba6 {[%clk 0:01:17.1]} 17... Rad8 {[%clk 0:00:15.5]} 18.
Rhc1 {[%clk 0:01:12.1]} 18... Bxf3 {[%clk 0:00:15.9]} 19. gxf3 {[%clk
0:01:12.5]} 19... Nb8 {[%clk 0:00:16.8]} 20. Bb7 {[%clk 0:01:05.6]} 20... e5
{[%clk 0:00:16.7]} 21. d5 {[%clk 0:00:57.8]} 21... Nd7 {[%clk 0:00:17.2]} 22.
Rc7 {[%clk 0:00:51.5]} 22... Nc5 {[%clk 0:00:14]} 23. Bc6 {[%clk 0:00:51.8]}
23... e4 {[%clk 0:00:14.5]} 24. Rxa7 {[%clk 0:00:43.7]} 24... exf3 {[%clk
0:00:13.7]} 25. Rb4 {[%clk 0:00:34.8]} 25... Rh8 {[%clk 0:00:09.3]} 26. Rf4
{[%clk 0:00:32.6]} 26... Rh2 {[%clk 0:00:04.5]} 27. Rfxf7+ {[%clk 0:00:32.1]}
27... Kg8 {[%clk 0:00:03.2]} 28. Rxf3 {[%clk 0:00:29.8]} 28... Ne4+ {[%clk
0:00:03.2]} 29. Kd3 {[%clk 0:00:20.1]} 29... Nxf2+ {[%clk 0:00:02.8]} 30. Kd4
{[%clk 0:00:20.4]} 30... Rh4+ {[%clk 0:00:01.2]} 31. Rf4 {[%clk 0:00:18.7]} 1-0